bitfinex/quotes_SOLUSD_20230103
["timestamp","ask_amount","ask_price","bid_price","bid_amount"]
[1672708466704,103.65127025,11.276,11.267,23.3382]
[1672708466908,170.24127025,11.276,11.267,23.3382]
[1672708472267,130.24127025,11.276,11.267,63.3382]
[1672708473025,130.24127025,11.276,11.267,23.3382]
[1672708474058,40.0,11.275,11.267,23.3382]
[1672708474275,40.0,11.273,11.267,23.3382]
[1672708478569,66.61,11.272,11.267,23.3382]
[1672708485506,130.26127025,11.272,11.264,2.0811068]
[1672708485723,4.02,11.27,11.264,2.0811068]
[1672708485931,44.02,11.27,11.264,2.0811068]
[1672708486155,110.64,11.27,11.264,2.0811068]
[1672708490781,70.64,11.27,11.264,2.0811068]
[1672708491413,70.64,11.27,11.26,40.0]
[1672708491634,93.3488,11.27,11.264,4.9895099]
[1672708492370,92.8488,11.27,11.264,4.9895099]
[1672708493000,156.50007025,11.27,11.264,4.9895099]
[1672708493943,40.0,11.269,11.264,4.9895099]
[1672708494357,103.65127025,11.269,11.264,4.9895099]
[1672708496242,66.63,11.268,11.264,4.9895099]
[1672708497731,130.28127025,11.268,11.264,4.9895099]
[1672708499180,40.0,11.267,11.264,4.9895099]
[1672708501299,191.3021763,11.268,11.264,4.9895099]
[1672708501514,40.0,11.267,11.264,4.9895099]
[1672708502880,164.6721763,11.267,11.264,4.9895099]
[1672708505395,164.6721763,11.267,11.251,106.74]
[1672708505396,40.0,11.265,11.251,106.74]
[1672708505603,4.02,11.26,11.252,37.5]
[1672708505922,4.02,11.26,11.252,35.0]
[1672708509069,97.37847372,11.264,11.252,35.0]
[1672708509395,23.744,11.268,11.253,91.6374]
[1672708509625,23.744,11.268,11.253,230.0852]
[1672708509917,23.744,11.268,11.254,40.0]
[1672708510102,78.90080947,11.268,11.256,40.0]
[1672708510317,78.90080947,11.268,11.257,24.0513]
[1672708510525,118.90080947,11.268,11.257,24.0513]
[1672708510735,40.0,11.267,11.257,24.0513]
[1672708510966,40.0,11.267,11.258,64.0513]
[1672708512854,78.90080947,11.268,11.258,64.0513]
[1672708513069,23.744,11.268,11.258,64.0513]
[1672708513279,23.744,11.268,11.259,66.69]
[1672708513599,23.744,11.268,11.259,40.0]
[1672708513998,23.744,11.268,11.259,64.1021]
[1672708514205,78.90080947,11.268,11.259,64.1021]
[1672708515929,78.90080947,11.268,11.259,24.1021]
[1672708516665,40.0,11.267,11.259,24.1021]
[1672708517291,148.03104886,11.267,11.259,24.1021]
[1672708524128,108.03104886,11.267,11.259,24.1021]
[1672708525909,107.53104886,11.267,11.259,24.1021]
[1672708527392,66.65,11.266,11.259,24.1021]
[1672708528836,106.65,11.266,11.259,24.1021]
[1672708529063,66.65,11.266,11.259,24.1021]
[1672708529590,54.65680947,11.267,11.26,40.0]
[1672708532521,90.374,11.268,11.26,40.0]
[1672708532731,23.744,11.268,11.26,40.0]
[1672708540532,23.744,11.268,11.259,64.1021]
[1672708543897,23.744,11.268,11.259,130.7921]
[1672708545452,23.744,11.268,11.26,40.0]
[1672708545663,66.6,11.274,11.262,40.0]
[1672708545882,66.59,11.276,11.264,40.0]
[1672708546101,66.59,11.276,11.265,23.0315]
[1672708546102,55.11347614,11.276,11.265,23.0315]
[1672708546609,55.11347614,11.276,11.267,40.0]
[1672708547451,55.11347614,11.276,11.267,63.0041]
[1672708547864,90.9723,11.278,11.267,63.0041]
[1672708548072,55.11347614,11.276,11.267,63.0041]
[1672708548506,121.70347614,11.276,11.267,63.0041]
[1672708549382,55.11347614,11.276,11.267,63.0041]
[1672708554219,55.11347614,11.276,11.267,23.0041]
[1672708554430,40.0,11.275,11.267,23.0041]
[1672708555802,121.70347614,11.276,11.267,23.0041]
[1672708556011,40.0,11.275,11.267,23.0041]
[1672708558319,131.47104381,11.275,11.261,106.68]
[1672708558537,4.02,11.27,11.26,130.2227]
[1672708558846,4.02,11.27,11.26,90.2227]
[1672708559166,4.02,11.27,11.26,23.5427]
[1672708559985,40.0,11.269,11.26,23.5427]
[1672708562828,95.11347614,11.269,11.26,23.5427]
[1672708567262,55.11347614,11.269,11.261,40.0]
[1672708567591,93.9345,11.27,11.261,40.0]
[1672708567790,40.0,11.269,11.26,23.5427]
[1672708570726,95.11347614,11.269,11.26,23.5427]
[1672708573862,66.63,11.268,11.26,23.5427]
[1672708574077,40.0,11.267,11.26,23.5427]
[1672708574823,66.63,11.268,11.26,23.5427]
[1672708575049,40.0,11.267,11.26,23.5427]
[1672708577875,40.0,11.265,11.26,23.5427]
[1672708578085,40.0,11.265,11.259,135.7108]
[1672708579325,66.65,11.266,11.259,135.7108]
[1672708579747,161.75347614,11.267,11.259,135.7108]
[1672708581215,214.62771553,11.267,11.259,135.7108]
[1672708582602,174.62771553,11.267,11.259,135.7108]
[1672708582795,107.98771553,11.267,11.259,135.7108]
[1672708586156,22.771,11.268,11.26,40.0]
[1672708587150,22.771,11.268,11.259,158.9615]
[1672708587467,77.88447614,11.268,11.259,158.9615]
[1672708588070,40.0,11.267,11.259,158.9615]
[1672708588490,95.11347614,11.267,11.259,158.9615]
[1672708590173,55.11347614,11.267,11.259,158.9615]
[1672708590816,40.0,11.266,11.259,158.9615]
[1672708596181,95.11347614,11.267,11.259,158.9615]
[1672708596615,147.98771553,11.267,11.259,158.9615]
[1672708596942,76.35756767,11.266,11.253,66.72]
[1672708597127,76.35756767,11.266,11.247,40.0]
[1672708597128,4.02,11.26,11.25,200.7958]
[1672708597332,4.02,11.26,11.251,40.0]
[1672708599455,4.02,11.26,11.251,62.7771]
[1672708603029,4.02,11.26,11.251,22.7771]
[1672708604074,4.02,11.26,11.251,22.2771]
[1672708604691,4.02,11.26,11.251,62.2771]
[1672708606599,4.02,11.26,11.251,22.2771]
[1672708606999,4.02,11.26,11.251,21.2771]
[1672708607631,4.02,11.26,11.252,40.0]
[1672708619316,84.72113271,11.261,11.252,40.0]
[1672708627345,4.02,11.27,11.254,40.0]
[1672708627659,23.2291,11.269,11.256,40.0]
[1672708627869,23.2291,11.269,11.257,199.0701]
[1672708628188,79.55223271,11.269,11.258,40.0]
[1672708629005,79.55223271,11.269,11.258,148.345]
[1672708631026,79.55223271,11.269,11.259,66.69]
[1672708631214,79.55223271,11.269,11.26,40.0]
[1672708635636,79.55223271,11.269,11.259,113.7894]
[1672708635966,79.55223271,11.269,11.26,40.0]
[1672708638914,142.89212866,11.269,11.26,40.0]
[1672708639647,86.56899595,11.269,11.26,40.0]
[1672708639856,23.2291,11.269,11.26,40.0]
[1672708653409,79.55223271,11.269,11.259,180.4794]
[1672708653620,79.55223271,11.269,11.259,113.7894]
[1672708655085,79.55223271,11.269,11.26,40.0]
[1672708656362,142.89212866,11.269,11.26,40.0]
[1672708659724,79.55223271,11.269,11.26,40.0]
[1672708684121,79.55223271,11.269,11.259,136.3895]
[1672708685193,79.55223271,11.269,11.26,40.0]
[1672708691290,79.55223271,11.269,11.259,136.3895]
[1672708691505,119.55223271,11.269,11.259,136.3895]
[1672708691815,79.55223271,11.269,11.26,40.0]
[1672708693083,23.2291,11.269,11.26,44.04]
[1672708695165,23.2291,11.269,11.26,40.0]
[1672708696852,79.55223271,11.269,11.26,40.0]
[1672708697704,79.55223271,11.269,11.259,136.3895]
[1672708699091,79.55223271,11.269,11.26,40.0]
[1672708700753,79.55223271,11.269,11.259,136.3895]
[1672708700754,119.55223271,11.269,11.259,136.3895]
[1672708701701,79.55223271,11.269,11.259,136.3895]
[1672708701932,79.55223271,11.269,11.26,40.0]
[1672708707610,79.55223271,11.269,11.259,136.3895]
[1672708707918,142.89212866,11.269,11.259,136.3895]
[1672708708107,46.20709158,11.267,11.259,136.3895]
[1672708708312,66.65,11.266,11.259,136.3895]
[1672708708527,40.0,11.265,11.259,136.3895]
[1672708710757,103.33989595,11.265,11.259,136.3895]
[1672708712100,63.33989595,11.265,11.259,136.3895]
[1672708729591,63.33989595,11.265,11.254,66.72]
[1672708729592,40.0,11.264,11.254,66.72]
[1672708729801,4.04,11.26,11.25,89.2547]
[1672708730743,44.04,11.26,11.25,89.2547]
[1672708731147,67.3952,11.26,11.25,89.2547]
[1672708731353,27.3952,11.26,11.251,40.0]
[1672708738423,27.3952,11.26,11.25,89.2547]
[1672708738640,86.77596625,11.26,11.25,22.5147]
[1672708740124,40.0,11.259,11.25,22.5147]
[1672708740947,86.77596625,11.26,11.25,22.5147]
[1672708741161,153.45596625,11.26,11.25,22.5147]
[1672708741791,40.0,11.259,11.25,22.5147]
[1672708742212,99.38076625,11.259,11.25,22.5147]
[1672708742424,162.7206622,11.259,11.25,22.5147]
[1672708746003,66.69,11.258,11.25,22.5147]
[1672708746194,40.0,11.257,11.25,22.5147]
[1672708746407,66.71,11.256,11.25,22.5147]
[1672708746616,40.0,11.255,11.25,22.5147]
[1672708746835,99.38076625,11.255,11.25,22.5147]
[1672708747038,146.65646762,11.255,11.248,3.0007677]
[1672708747260,40.0,11.253,11.248,3.0007677]
[1672708747482,66.73,11.252,11.248,0.0007677]
[1672708747667,66.73,11.252,11.239,162.0853]
[1672708747668,40.0,11.251,11.239,162.0853]
[1672708747873,86.96,11.25,11.24,22.6639]
[1672708748084,40.0,11.249,11.24,22.6639]
[1672708748319,66.75,11.248,11.24,20.1639]
[1672708748505,40.0,11.247,11.24,17.6639]
[1672708748713,104.08098903,11.247,11.24,17.6639]
[1672708748951,76.89167317,11.246,11.24,17.6639]
[1672708751998,40.0,11.245,11.24,17.6639]
[1672708752202,76.89167317,11.246,11.24,17.6639]
[1672708752401,76.89167317,11.245,11.24,17.6639]
[1672708752613,40.0,11.244,11.24,17.6639]
[1672708752822,40.0,11.244,11.239,139.4214]
[1672708753023,116.89167317,11.244,11.239,115.6549]
[1672708757562,76.89167317,11.244,11.239,115.6549]
[1672708758183,65.86487167,11.248,11.239,115.6549]
[1672708758621,204.87508886,11.247,11.239,115.6549]
[1672708758931,70.73833983,11.246,11.239,115.6549]
[1672708759168,40.0,11.245,11.239,115.6549]
[1672708759542,110.73833983,11.245,11.239,115.6549]
[1672708760405,110.73833983,11.245,11.233,66.84]
[1672708760406,67.37674903,11.244,11.233,66.84]
[1672708760601,4.04,11.24,11.231,22.6061]
[1672708760929,70.73833983,11.244,11.233,40.0]
[1672708761438,40.0,11.243,11.234,69.5623256]
[1672708761649,40.0,11.243,11.234,26.6584256]
[1672708763968,4.04,11.24,11.234,26.6584256]
[1672708764180,4.04,11.24,11.234,2.7223256]
[1672708764908,40.0,11.239,11.234,2.7223256]
[1672708765757,208.95508886,11.24,11.234,2.7223256]
[1672708766074,40.0,11.239,11.234,2.7223256]
[1672708766499,110.73833983,11.239,11.234,2.7223256]
[1672708766751,67.37674903,11.238,11.234,2.7223256]
[1672708766914,40.0,11.236,11.234,2.7223256]
[1672708767443,184.60591386,11.235,11.234,2.7223256]
[1672708767643,251.43591386,11.235,11.234,2.7223256]
[1672708768498,184.60591386,11.235,11.234,0.0023256]
[1672708768706,251.43591386,11.235,11.234,0.0023256]
[1672708770272,40.0,11.234,11.222,66.91]
[1672708770499,20.22,11.23,11.221,18.5065]
[1672708770703,20.22,11.23,11.221,16.0065]
[1672708770894,40.0,11.229,11.221,16.0065]
[1672708771104,178.11508886,11.229,11.221,16.0065]
[1672708771314,178.11508886,11.229,11.221,13.0065]
[1672708771529,138.11508886,11.228,11.221,13.0065]
[1672708771967,138.11508886,11.228,11.22,165.9777627]
[1672708772371,50.90784933,11.229,11.221,40.0]
[1672708772576,26.8356,11.23,11.221,40.0]
[1672708772992,97.57393983,11.23,11.221,40.0]
[1672708773198,67.37674903,11.229,11.22,232.8977627]
[1672708773427,40.0,11.228,11.22,165.9777627]
[1672708773633,110.73833983,11.228,11.22,165.9777627]
[1672708773859,70.73833983,11.227,11.22,165.9777627]
[1672708774400,67.37674903,11.227,11.22,165.9777627]
[1672708774617,40.0,11.228,11.22,165.9777627]
[1672708775006,24.6303,11.229,11.221,40.0]
[1672708777009,24.6303,11.229,11.22,165.9777627]
[1672708777540,24.6303,11.229,11.221,40.0]
[1672708782783,24.6303,11.229,11.22,165.9777627]
[1672708783111,24.6303,11.229,11.221,40.0]
[1672708783432,85.9367065,11.229,11.221,40.0]
[1672708783645,85.9367065,11.229,11.221,35.0]
[1672708784170,40.0,11.228,11.22,165.9777627]
[1672708784775,85.9367065,11.229,11.221,40.0]
[1672708788167,85.9367065,11.229,11.22,165.9777627]
[1672708789637,85.9367065,11.229,11.221,40.0]
[1672708789957,85.9367065,11.229,11.22,165.9777627]
[1672708790800,152.8067065,11.229,11.22,165.9777627]
[1672708791208,152.8067065,11.229,11.221,40.0]
[1672708791423,85.9367065,11.229,11.221,40.0]
[1672708792472,85.9367065,11.229,11.221,87.7933717]
[1672708794477,24.6303,11.229,11.221,87.7933717]
[1672708796145,24.6303,11.229,11.221,154.7033717]
[1672708796358,24.6303,11.229,11.221,87.7933717]
[1672708800256,24.6303,11.229,11.221,47.7933717]
[1672708800469,85.9367065,11.229,11.221,47.7933717]
[1672708801200,40.0,11.227,11.221,47.7933717]
[1672708801638,128.1864065,11.226,11.221,0.0033717]
[1672708801848,186.58535553,11.226,11.221,0.0033717]
[1672708802065,203.81680486,11.225,11.221,0.0033717]
[1672708802276,40.0,11.223,11.221,0.0033717]
[1672708802469,66.91,11.222,11.221,0.0033717]
[1672708803103,226.60535553,11.223,11.221,0.0033717]
[1672708803306,163.81680486,11.222,11.221,0.0033717]
[1672708803518,230.72680486,11.222,11.221,0.0033717]
[1672708806905,105.41785583,11.222,11.221,0.0033717]
[1672708810043,40.0,11.221,11.211,159.1104]
[1672708810249,8.13,11.22,11.211,159.1104]
[1672708810588,40.0,11.219,11.211,159.1104]
[1672708810792,101.3064065,11.219,11.211,159.1104]
[1672708810997,61.3064065,11.218,11.211,159.1104]
[1672708811317,119.70535553,11.218,11.211,159.1104]
[1672708811525,119.70535553,11.218,11.208,35.729328]
[1672708811526,40.0,11.217,11.208,35.729328]
[1672708811734,40.0,11.215,11.208,35.729328]
[1672708811949,66.96,11.214,11.208,35.729328]
[1672708812266,40.0,11.213,11.208,35.729328]
[1672708812474,153.11579836,11.213,11.208,35.729328]
[1672708812663,48.88591599,11.212,11.208,35.729328]
[1672708813937,24.5171,11.219,11.208,35.729328]
[1672708814369,24.5171,11.219,11.209,66.99]
[1672708814558,24.5171,11.219,11.21,40.0]
[1672708815417,160.092501,11.219,11.208,35.729328]
[1672708815624,182.953801,11.219,11.208,35.729328]
[1672708815836,97.90582953,11.218,11.208,35.729328]
[1672708816039,40.0,11.216,11.208,35.729328]
[1672708816454,82.1692805,11.216,11.208,35.729328]
[1672708816664,137.90582953,11.216,11.208,35.729328]
[1672708817289,82.1692805,11.216,11.208,35.729328]
[1672708817503,40.0,11.214,11.208,35.729328]
[1672708817710,66.96,11.213,11.208,35.729328]
[1672708817930,40.0,11.212,11.208,35.729328]
[1672708818762,94.955637,11.212,11.208,35.729328]
[1672708819302,94.955637,11.212,11.203,40.0]
[1672708819519,8.13,11.21,11.202,134.9202]
[1672708819727,40.65,11.21,11.202,134.9202]
[1672708819926,95.545637,11.21,11.202,134.9202]
[1672708820135,95.545637,11.21,11.202,124.9202]
[1672708820352,137.7149175,11.21,11.202,111.4651]
[1672708820679,49.91824405,11.209,11.202,111.4651]
[1672708820871,105.2349175,11.21,11.202,111.4651]
[1672708821293,40.0,11.209,11.202,111.4651]
[1672708822359,82.7992805,11.21,11.202,111.4651]
[1672708822769,82.7992805,11.21,11.203,40.0]
[1672708822983,82.7992805,11.21,11.202,111.4651]
[1672708823407,82.7992805,11.21,11.203,40.0]
[1672708824037,8.11,11.21,11.203,40.0]
[1672708824561,47.9498,11.212,11.203,40.0]
[1672708825805,47.9498,11.212,11.203,107.02]
[1672708826015,47.9498,11.212,11.203,40.0]
[1672708826657,8.13,11.21,11.202,111.4651]
[1672708827192,8.13,11.21,11.203,40.0]
[1672708828114,90.1190805,11.212,11.203,40.0]
[1672708828344,47.9498,11.212,11.203,40.0]
[1672708828976,45.12294268,11.211,11.203,40.0]
[1672708829187,103.96497729,11.211,11.203,40.0]
[1672708829589,54.69206297,11.21,11.203,40.0]
[1672708830637,62.82206297,11.21,11.203,40.0]
[1672708831070,54.69206297,11.209,11.203,40.0]
[1672708834875,47.9498,11.212,11.203,40.0]
[1672708835271,47.9498,11.212,11.203,35.0]
[1672708836030,98.30852964,11.212,11.203,35.0]
[1672708837811,47.9498,11.212,11.203,35.0]
[1672708838206,47.9498,11.212,11.204,67.02]
[1672708838427,47.9498,11.212,11.205,40.0]
[1672708838634,47.9498,11.212,11.207,40.0]
[1672708838839,8.16,11.22,11.208,66.99]
[1672708839177,50.35872964,11.219,11.209,40.0]
[1672708839382,50.35872964,11.219,11.209,159.6806]
[1672708842097,50.35872964,11.219,11.211,40.0]
[1672708846135,109.20076425,11.219,11.211,40.0]
[1672708851376,50.35872964,11.218,11.211,40.0]
[1672708853168,50.35872964,11.218,11.21,40.0]
[1672708855582,50.35872964,11.218,11.209,208.5272]
[1672708855583,175.45283273,11.218,11.209,208.5272]
[1672708855987,50.35872964,11.217,11.209,208.5272]
[1672708856623,40.0,11.216,11.209,165.0272]
[1672708857264,90.35872964,11.217,11.209,165.0272]
[1672708857691,50.35872964,11.217,11.209,165.0272]
[1672708858225,116.61079812,11.217,11.209,165.0272]
[1672708860633,50.35872964,11.216,11.209,165.0272]
[1672708861033,116.61079812,11.216,11.209,165.0272]
[1672708862821,157.30872964,11.215,11.202,67.03]
[1672708863030,181.72542964,11.215,11.203,24.245]
[1672708863262,175.45283273,11.214,11.203,24.245]
[1672708863450,66.96,11.213,11.203,24.245]
[1672708863662,40.0,11.212,11.203,24.245]
[1672708863897,40.0,11.21,11.203,24.245]
[1672708864219,40.0,11.21,11.202,133.3748]
[1672708864398,66.25206848,11.209,11.202,133.3748]
[1672708864609,116.61079812,11.209,11.202,108.8072]
[1672708864836,50.35872964,11.208,11.202,108.8072]
[1672708865884,50.35872964,11.208,11.203,40.0]
[1672708866620,50.35872964,11.208,11.202,108.8072]
[1672708866840,117.73743091,11.208,11.202,108.8072]
[1672708867456,117.73743091,11.208,11.203,40.0]
[1672708869157,117.73743091,11.208,11.202,148.8072]
[1672708869349,117.73743091,11.208,11.203,40.0]
[1672708869789,117.73743091,11.208,11.202,108.8072]
[1672708870102,50.35872964,11.207,11.202,108.8072]
[1672708870511,67.37870127,11.206,11.202,108.8072]
[1672708870725,67.37870127,11.206,11.201,38.9904773]
[1672708871343,40.0,11.205,11.201,38.9904773]
[1672708871762,40.0,11.203,11.201,38.9904773]
[1672708871996,67.03,11.202,11.201,38.9904773]
[1672708872201,67.03,11.202,11.192,24.4112]
[1672708872202,40.0,11.201,11.192,24.4112]
[1672708872417,107.8,11.2,11.185,35.794825]
[1672708872730,95.09072964,11.199,11.189,111.24]
[1672708872940,67.05,11.198,11.185,35.794825]
[1672708873130,122.14072964,11.198,11.188,48.0632767]
[1672708873461,55.09072964,11.197,11.188,48.0632767]
[1672708873675,83.24447238,11.188,11.185,35.794825]
[1672708873884,40.0,11.187,11.185,0.004825]
[1672708874102,67.12,11.186,11.185,0.004825]
[1672708874282,75.79,11.185,11.18,65.9250727]
[1672708874498,67.14,11.184,11.18,65.9250727]
[1672708874808,77.88586443,11.183,11.18,7.27e-05]
[1672708875024,40.0,11.181,11.18,7.27e-05]
[1672708875455,200.15444456,11.181,11.18,7.27e-05]
[1672708875661,200.15444456,11.181,11.168,107.23]
[1672708875662,40.0,11.18,11.168,67.23]
[1672708875883,48.16,11.18,11.169,0.95564168]
[1672708876087,122.26858013,11.179,11.169,0.95555612]
[1672708876280,40.0,11.178,11.169,0.95555612]
[1672708876491,40.0,11.178,11.17,67.22]
[1672708876718,40.0,11.178,11.171,0.95547057]
[1672708877036,231.63198195,11.178,11.167,23.3476]
[1672708877253,91.68363036,11.178,11.167,23.3476]
[1672708877653,91.68363036,11.178,11.168,67.23]
[1672708878281,91.68363036,11.178,11.167,23.3476]
[1672708878928,91.68363036,11.178,11.167,63.3476]
[1672708879140,51.68363036,11.178,11.168,67.23]
[1672708879334,40.0,11.189,11.17,8.16]
[1672708879545,40.0,11.189,11.172,40.0]
[1672708879764,61.17381644,11.188,11.172,40.0]
[1672708879975,67.12,11.187,11.172,40.0]
[1672708880181,40.0,11.186,11.172,40.0]
[1672708880400,40.0,11.184,11.172,67.21]
[1672708880608,40.0,11.184,11.171,107.21]
[1672708881544,107.12,11.187,11.171,107.21]
[1672708881864,67.12,11.187,11.171,107.21]
[1672708882070,67.11,11.188,11.171,107.21]
[1672708882287,151.94865938,11.189,11.171,107.21]
[1672708882495,44.83865938,11.188,11.171,107.21]
[1672708882697,107.12,11.187,11.171,107.21]
[1672708883238,40.0,11.185,11.171,107.21]
[1672708883437,67.14,11.184,11.171,107.21]
[1672708883642,67.14,11.184,11.164,59.512307]
[1672708883643,132.55133689,11.17,11.164,59.512307]
[1672708883855,132.55133689,11.17,11.14,87.02606364]
[1672708883856,67.23,11.169,11.163,0.003202]
[1672708884067,128.40381644,11.169,11.163,0.003202]
[1672708884278,40.0,11.168,11.163,0.003202]
[1672708884485,95.362307,11.162,11.155,67.31]
[1672708884705,174.03901221,11.167,11.155,67.31]
[1672708885030,67.23,11.169,11.155,67.31]
[1672708885031,134.03901221,11.166,11.155,67.31]
[1672708885235,134.03901221,11.166,11.155,66.81]
[1672708885546,67.18,11.176,11.155,66.81]
[1672708885547,8.13,11.17,11.156,40.0]
[1672708885736,67.23,11.169,11.156,40.0]
[1672708885945,67.23,11.169,11.157,67.3]
[1672708886159,67.2,11.174,11.158,40.0]
[1672708886383,67.17,11.179,11.16,40.88]
[1672708886601,8.14,11.18,11.162,40.0]
[1672708886794,67.17,11.179,11.163,67.26]
[1672708887001,67.15,11.182,11.164,40.0]
[1672708887213,67.14,11.184,11.17,8.16]
[1672708887423,67.11,11.188,11.171,67.21]
[1672708887760,40.0,11.187,11.172,40.0]
[1672708888084,67.12,11.186,11.172,40.0]
[1672708888600,67.11,11.188,11.174,40.0]
[1672708888998,67.11,11.188,11.175,67.19]
[1672708889214,67.11,11.189,11.175,67.19]
[1672708889649,67.11,11.189,11.176,40.0]
[1672708889863,67.11,11.189,11.174,40.0]
[1672708890068,67.11,11.189,11.172,40.0]
[1672708890280,62.621887,11.188,11.172,40.0]
[1672708890468,67.12,11.187,11.169,40.0]
[1672708890687,40.0,11.186,11.169,40.0]
[1672708890889,67.13,11.185,11.169,40.0]
[1672708891226,40.0,11.184,11.169,40.0]
[1672708891437,67.14,11.183,11.169,40.0]
[1672708891831,67.14,11.183,11.17,67.22]
[1672708892046,67.11,11.188,11.171,40.0]
[1672708892271,67.11,11.188,11.172,67.21]
[1672708892495,40.0,11.187,11.173,40.0]
[1672708892674,67.12,11.186,11.173,40.0]
[1672708893941,40.0,11.185,11.173,40.0]
[1672708894150,67.14,11.184,11.173,40.0]
[1672708894782,67.13,11.185,11.173,40.0]
[1672708895521,67.12,11.186,11.173,40.0]
[1672708896583,40.0,11.185,11.173,40.0]
[1672708896793,67.14,11.184,11.173,40.0]
[1672708898047,67.14,11.184,11.171,107.21]
[1672708899091,129.761887,11.184,11.171,67.21]
[1672708899307,8.13,11.18,11.17,113.853]
[1672708899519,8.13,11.18,11.168,107.23]
[1672708899726,198.84646834,11.18,11.168,107.23]
[1672708899938,131.68646834,11.18,11.168,107.23]
[1672708902476,131.68646834,11.18,11.168,40.0]
[1672708902890,131.68646834,11.18,11.167,90.9884]
[1672708902891,67.16,11.179,11.167,23.7484]
[1672708903210,163.55646834,11.178,11.167,23.7484]
[1672708903636,190.73646834,11.177,11.167,23.7484]
[1672708904452,163.55646834,11.176,11.167,23.7484]
[1672708904662,67.19,11.175,11.162,67.27]
[1672708904887,67.19,11.175,11.159,67.29]
[1672708904888,8.1,11.17,11.159,67.29]
[1672708905212,67.23,11.169,11.158,107.29]
[1672708905419,67.23,11.169,11.158,63.9121672]
[1672708906689,8.1,11.17,11.158,131.2021672]
[1672708906900,67.21,11.172,11.158,131.2021672]
[1672708907099,67.2,11.173,11.158,131.2021672]
[1672708907519,40.0,11.172,11.158,131.2021672]
[1672708907847,40.0,11.17,11.158,131.2021672]
[1672708908366,60.93458134,11.17,11.158,131.2021672]
[1672708908794,67.21,11.171,11.158,131.2021672]
[1672708910560,128.14458134,11.171,11.158,63.9121672]
[1672708910975,40.0,11.17,11.158,63.9121672]
[1672708911207,67.23,11.169,11.158,23.9121672]
[1672708911518,67.23,11.169,11.158,63.9121672]
[1672708912130,67.23,11.169,11.158,23.9121672]
[1672708912342,40.0,11.167,11.158,23.9121672]
[1672708912673,190.79646834,11.166,11.158,23.9121672]
[1672708912888,40.0,11.165,11.158,23.9121672]
[1672708913073,40.0,11.163,11.158,23.9121672]
[1672708913287,67.27,11.162,11.158,23.9121672]
[1672708913721,46.17,11.17,11.158,23.9121672]
[1672708914138,60.93458134,11.167,11.158,23.9121672]
[1672708914459,67.23,11.168,11.158,23.9121672]
[1672708916017,67.10458134,11.17,11.158,23.9121672]
[1672708916018,67.23,11.169,11.158,23.9121672]
[1672708916228,67.22,11.17,11.158,23.9121672]
[1672708916643,67.22,11.17,11.158,23.4121672]
[1672708917720,6.14,11.18,11.16,40.0]
[1672708917932,6.14,11.18,11.161,67.27]
[1672708918142,60.93458134,11.179,11.161,67.27]
[1672708918357,67.17,11.178,11.162,40.0]
[1672708918570,67.17,11.178,11.164,40.0]
[1672708918993,40.0,11.177,11.164,40.0]
[1672708919177,40.0,11.175,11.163,117.593]
[1672708919511,40.0,11.173,11.163,117.593]
[1672708919726,67.21,11.172,11.163,117.593]
[1672708919935,67.21,11.172,11.161,23.8699]
[1672708920461,67.2,11.174,11.162,40.0]